{"text_format":"3","workbook":"xlsx","n_sheets":1,"sheets":["Предмет"],"not_rendered":{"external_links":1,"defined_names":8},"read":"whole","date_system":"1900"}

{"sheet":"Предмет","index":0,"n_rows":16,"n_cols":16,"rows_kept":16}
["№","СНИЛС","Фамилия","Имя","Отчество","Пол","Дата рождения","Участник с ОВЗ","Класс","Класс участия","Балл","Макс. Балл","Статус","Призер МЭ прошлого года","Учитель","Место работы учителя"]
[1,2,3,4,5,6,7,8,9,10,11,12,13,14,15,16]
[1,19490229700,"Файзриев ","Фанзиль","Фанилевич","м","2016-07-19","нет",3,3,12,40,"участник","нет","Насирова Рамзия Самигулловна",{"$f":"$P$12","v":"Муниципальное бюджетное общеобразовательное учреждение \"Средняя общеобразовательная школа №3\" г.Набережные Челны Республики Татарстан"}]
[2,19418026779,"Серебрякова","Анна","Владимировна","ж","2016-06-05","нет",3,3,10,40,"участник","нет","Пескова Снежана Юрьевна","Муниципальное бюджетное общеобразовательное учреждение \"Средняя общеобразовательная школа №3\" г.Набережные Челны Республики Татарстан"]
[3,19482369215,"Хафизова","Лейсан","Ильдаровна","ж","2016-07-14","нет",3,3,10,40,"участник","нет","Насирова Рамзия Самигулловна","Муниципальное бюджетное общеобразовательное учреждение \"Средняя общеобразовательная школа №3\" г.Набережные Челны Республики Татарстан"]
[4,19189105599,"Антков","Глеб","Андреевич","м","2015-12-15","нет",4,4,19,40,"участник","нет","Землянова Марияя Петровна","Муниципальное бюджетное общеобразовательное учреждение \"Средняя общеобразовательная школа №3\" г.Набережные Челны Республики Татарстан"]
[5,18878220831,"Красноперов","Артур","Игнатьевич","м","2015-05-02","нет",4,4,17,40,"участник","нет","Пескова Снежана Юрьевна","Муниципальное бюджетное общеобразовательное учреждение \"Средняя общеобразовательная школа №3\" г.Набережные Челны Республики Татарстан"]
[6,18872713824,"Ильяясов ","Салават","Ильшатович","м","2015-04-27","нет",4,4,16,40,"участник","нет","Ганиуллина Минлегуль Расиховна","Муниципальное бюджетное общеобразовательное учреждение \"Средняя общеобразовательная школа №3\" г.Набережные Челны Республики Татарстан"]
[7,18001100385,"Газизов ","Искандер ","Русланович","м","2014-01-28","нет",5,5,42,50,"участник","нет",{"$f":"O15","v":"Хамидуллин Айдар Рафисович"},{"$f":"P14","v":"Муниципальное бюджетное общеобразовательное учреждение \"Средняя общеобразовательная школа №3\" г.Набережные Челны Республики Татарстан"}]
[8,17670752600,"Нуруллин"," Ильнур ","Ирекович","м","2013-05-11","нет",6,6,43,50,"призер","нет","Хамидуллин Айдар Рафисович",{"$f":"$P$12","v":"Муниципальное бюджетное общеобразовательное учреждение \"Средняя общеобразовательная школа №3\" г.Набережные Челны Республики Татарстан"}]
[9,17496780633,"Шамсиева ","Карина ","Рустемовна","ж","2012-12-23","нет",7,7,60,150,"участник","нет","Хамидуллин Айдар Рафисович",{"$f":"$P$12","v":"Муниципальное бюджетное общеобразовательное учреждение \"Средняя общеобразовательная школа №3\" г.Набережные Челны Республики Татарстан"}]
[10,17276261381,"Коновалов ","Тимур ","Алексеевич","м","2012-07-03","нет",7,7,64,150,"призер","нет","Хамидуллин Айдар Рафисович","Муниципальное бюджетное общеобразовательное учреждение \"Средняя общеобразовательная школа №3\" г.Набережные Челны Республики Татарстан"]
[11,17206147644,"Юлуев","Камиль","Русланович","м","2010-05-18","нет",9,9,61,150,"участник","нет","Хамидуллин Айдар Рафисович","Муниципальное бюджетное общеобразовательное учреждение \"Средняя общеобразовательная школа №3\" г.Набережные Челны Республики Татарстан"]
[12,17224119439,"Сулейманов ","Данияр","Маратович","м","2010-04-13","нет",9,9,65,150,"призер","нет","Хамидуллин Айдар Рафисович",{"$f":"$P$12","v":"Муниципальное бюджетное общеобразовательное учреждение \"Средняя общеобразовательная школа №3\" г.Набережные Челны Республики Татарстан"}]
[13,17260126036," Салюков ","Тимофей ","Семёнович ","м",{"$f":"'[1]список всех олимп для учителей'!$G$578","v":"2009-01-21"},"нет",10,10,58,150,"участник",{"$f":"N13","v":"нет"},"Хамидуллин Айдар Рафисович","Муниципальное бюджетное общеобразовательное учреждение \"Средняя общеобразовательная школа №3\" г.Набережные Челны Республики Татарстан"]
[14,17201496846,"Шамсиев  ","Тимур","Рустемович","м",{"$f":"'[1]список всех олимп для учителей'!$G$630","v":"2009-05-11"},{"$f":"H14","v":"нет"},10,10,60,150,"призер","нет","Хамидуллин Айдар Рафисович","Муниципальное бюджетное общеобразовательное учреждение \"Средняя общеобразовательная школа №3\" г.Набережные Челны Республики Татарстан"]